[Event "Malawi Open Chess Chp"]
[Site "followchess.com"]
[Date "2022.06.10"]
[Round "3"]
[White "Kamwendo Precious"]
[Black "Mwape, William"]
[Result "1-0"]
[WhiteElo "1934"]
[BlackElo "2177"]
[ECO "B95"]
[WhiteFed "MAW"]
[BlackFed "ZAM"]
[FCGameId "1756024566"]
[WhiteFideId "20500785"]
[BlackFideId "8705453"]
[TimeControl "5400"]

1. e4 {[%clk 0:00:00]} c5 {[%clk 1:27:57]} 2. Nf3 {[%clk 1:29:39]} d6 
{[%clk 1:27:55]} 3. d4 {[%clk 1:29:26]} cxd4 {[%clk 1:27:51]} 4. Nxd4 
{[%clk 1:28:51]} Nf6 {[%clk 1:27:48]} 5. Nc3 {[%clk 1:28:48]} a6 
{[%clk 1:27:45]} 6. Bg5 {[%clk 1:28:32]} e6 {[%clk 1:27:43]} 7. Qd2 
{[%clk 1:28:26]} b5 {[%clk 1:24:52]} 8. f3 Nbd7 9. O-O-O {[%clk 1:27:10]} Bb7 
{[%clk 1:23:57]} 10. Kb1 {[%clk 1:26:48]} b4 {[%clk 1:22:55]} 11. Nce2 
{[%clk 1:26:28]} d5 {[%clk 1:22:44]} 12. exd5 {[%clk 1:26:13]} Bxd5 
{[%clk 1:22:18]} 13. Nf4 {[%clk 1:26:04]} Bxa2+ {[%clk 1:20:29]} 14. Kxa2 
{[%clk 1:25:18]} Qa5+ {[%clk 1:20:28]} 15. Kb1 {[%clk 1:25:06]} Qxg5 
{[%clk 1:20:26]} 16. h4 {[%clk 1:24:26]} Qc5 {[%clk 1:18:31]} 17. g4 
{[%clk 1:24:09]} Be7 {[%clk 1:17:36]} 18. g5 {[%clk 1:22:35]} Nd5 
{[%clk 0:59:06]} 19. Ndxe6 {[%clk 1:22:05]} fxe6 {[%clk 0:59:01]} 20. Nxe6 
{[%clk 1:21:31]} Qc6 {[%clk 0:56:14]} 21. Qxd5 {[%clk 1:19:41]} Qxd5 
{[%clk 0:56:07]} 22. Rxd5 {[%clk 1:19:17]} Ra7 {[%clk 0:53:00]} 23. Nxg7+ 
{[%clk 1:19:06]} Kf7 {[%clk 0:52:57]} 24. Nf5 {[%clk 1:18:34]} Nb6 
{[%clk 0:52:20]} 25. Re5 {[%clk 1:17:55]} Rd8 {[%clk 0:50:38]} 26. Bd3 
{[%clk 1:17:38]} Bf8 {[%clk 0:49:58]} 27. Rhe1 {[%clk 1:16:19]} a5 
{[%clk 0:49:27]} 28. h5 {[%clk 1:15:53]} a4 {[%clk 0:49:16]} 29. Rb5 
{[%clk 1:15:40]} Rxd3 {[%clk 0:47:29]} 30. cxd3 {[%clk 1:15:27]} Nd7 
{[%clk 0:45:46]} 31. Rd5 {[%clk 1:13:36]} a3 {[%clk 0:45:06]} 32. bxa3 
{[%clk 1:13:28]} bxa3 {[%clk 0:44:44]} 33. Ka2 {[%clk 1:13:15]} Nb6 
{[%clk 0:44:18]} 34. Rb5 {[%clk 1:11:01]} Na4 {[%clk 0:43:41]} 35. Rc1 
{[%clk 1:10:32]} Nb2 {[%clk 0:43:08]} 36. d4 {[%clk 1:09:28]} Nd3 
{[%clk 0:42:40]} 37. Rc8 {[%clk 1:09:18]} Nb4+ {[%clk 0:41:49]} 38. Ka1 
{[%clk 1:08:01]} Nd3 {[%clk 0:40:48]} 39. g6+ {[%clk 1:07:23]} hxg6 
{[%clk 0:40:29]} 40. hxg6+ {[%clk 1:07:15]} Kxg6 {[%clk 0:39:36]} 41. Rxf8 
{[%clk 1:07:04]} Rh7 42. Rb6+ {[%clk 1:06:36]} Kg5 {[%clk 0:38:17]} 43. Ng3 
{[%clk 1:06:15]} Kh4 {[%clk 0:36:12]} 44. Rg6 {[%clk 1:05:36]} Kh3 
{[%clk 0:36:00]} 45. Ne4 {[%clk 1:05:20]} Kh2 {[%clk 0:35:42]} 46. Rc8 Nb4 47. 
Rc4 {[%clk 1:03:55]} Rb7 {[%clk 0:35:40]} 48. Nd6 {[%clk 1:02:43]} Rb6 
{[%clk 0:35:06]} 49. Rc8 {[%clk 1:02:25]} Nc2+ {[%clk 0:34:46]} 50. Rxc2+ 
{[%clk 1:02:19]} Kh1 {[%clk 0:34:44]} 51. Rc8 {[%clk 1:01:34]} 1-0

[Event "Malawi Open Chess Chp"]
[Site "followchess.com"]
[Date "2022.06.10"]
[Round "3"]
[White "Chiona, Richard"]
[Black "Luanja, Geoffrey"]
[Result "0-1"]
[WhiteElo "1896"]
[BlackElo "2150"]
[ECO "A11"]
[WhiteFed "MAW"]
[BlackFed "ZAM"]
[FCGameId "626015736"]
[WhiteFideId "20500882"]
[BlackFideId "8704287"]
[TimeControl "5400"]

1. c4 {[%clk 1:29:48]} c6 {[%clk 1:27:21]} 2. Nc3 {[%clk 1:28:44]} d5 
{[%clk 1:26:54]} 3. cxd5 {[%clk 1:27:14]} cxd5 4. Nf3 {[%clk 1:25:58]} Nf6 
{[%clk 1:24:59]} 5. g3 {[%clk 1:25:03]} Nc6 {[%clk 1:23:06]} 6. Bg2 
{[%clk 1:24:43]} e5 {[%clk 1:22:13]} 7. d4 {[%clk 1:24:02]} e4 {[%clk 1:20:55]} 
8. Ne5 {[%clk 1:23:00]} Bd6 {[%clk 1:20:21]} 9. Bf4 {[%clk 1:19:32]} O-O 
{[%clk 1:09:26]} 10. O-O {[%clk 1:18:55]} Ne7 {[%clk 1:05:55]} 11. f3 
{[%clk 1:17:47]} exf3 {[%clk 0:53:32]} 12. exf3 {[%clk 1:15:42]} 0-1

[Event "Malawi Open Chess Chp"]
[Site "followchess.com"]
[Date "2022.06.10"]
[Round "3"]
[White "Mpinganjira Stanley Frank"]
[Black "Foster Ken"]
[Result "1/2-1/2"]
[WhiteElo "1700"]
[BlackElo "1886"]
[ECO "C46"]
[WhiteFed "MAW"]
[BlackFed "MAW"]
[FCGameId "921644823"]
[WhiteFideId "20501960"]
[BlackFideId "20502109"]
[TimeControl "5400"]

1. e4 {[%clk 1:29:45]} e5 {[%clk 1:29:55]} 2. Nf3 {[%clk 1:29:40]} Nf6 
{[%clk 1:29:53]} 3. Nc3 {[%clk 1:29:29]} Nc6 {[%clk 1:29:47]} 4. Bc4 
{[%clk 1:29:15]} Bb4 {[%clk 1:29:29]} 5. Nd5 {[%clk 1:27:36]} Bc5 
{[%clk 1:29:21]} 6. d4 {[%clk 1:24:53]} Nxd4 {[%clk 1:28:08]} 7. Bg5 
{[%clk 1:24:00]} Nxf3+ {[%clk 1:27:06]} 8. Qxf3 {[%clk 1:23:29]} Be7 
{[%clk 1:26:57]} 9. Ne3 {[%clk 1:21:08]} O-O {[%clk 1:26:20]} 10. h4 
{[%clk 1:19:11]} c6 {[%clk 1:25:38]} 11. h5 {[%clk 1:18:52]} d5 {[%clk 1:25:02]} 
12. Bxf6 {[%clk 1:18:22]} Bxf6 {[%clk 1:24:11]} 13. exd5 {[%clk 1:18:10]} e4 
{[%clk 1:23:52]} 14. Qxe4 {[%clk 1:17:47]} Bxb2 {[%clk 1:23:38]} 15. Rd1 
{[%clk 1:17:18]} Bc3+ {[%clk 1:21:21]} 16. Kf1 {[%clk 1:17:00]} Re8 
{[%clk 1:17:57]} 17. Qd3 {[%clk 1:16:17]} Qf6 {[%clk 1:17:23]} 18. dxc6 
{[%clk 1:12:27]} bxc6 {[%clk 1:16:54]} 19. Qd6 {[%clk 1:11:04]} Be6 
{[%clk 1:15:44]} 20. Bxe6 {[%clk 1:09:16]} Rxe6 {[%clk 1:15:40]} 21. Qg3 
{[%clk 1:05:24]} Rae8 {[%clk 1:15:22]} 22. Kg1 {[%clk 1:04:45]} Be5 
{[%clk 1:11:55]} 23. Ng4 {[%clk 1:01:57]} Qf5 24. Nxe5 {[%clk 1:01:15]} Rxe5 
{[%clk 1:09:49]} 25. Rh4 {[%clk 0:57:24]} Qxc2 {[%clk 1:08:16]} 26. Rhd4 
{[%clk 0:57:02]} h6 {[%clk 1:04:58]} 27. Rd8 {[%clk 0:52:53]} Kh7 
{[%clk 1:03:53]} 28. Qf3 {[%clk 0:50:12]} Rxd8 {[%clk 1:01:27]} 29. Rxd8 
{[%clk 0:50:07]} Rf5 {[%clk 1:01:14]} 30. Rd2 {[%clk 0:48:35]} Qb1+ 
{[%clk 0:59:53]} 31. Rd1 {[%clk 0:46:44]} Rxf3 {[%clk 0:58:41]} 32. Rxb1 
{[%clk 0:46:38]} Rc3 {[%clk 0:58:31]} 33. Rb7 {[%clk 0:43:57]} a5 
{[%clk 0:58:23]} 34. Rxf7 1/2-1/2

[Event "Malawi Open Chess Chp"]
[Site "followchess.com"]
[Date "2022.06.10"]
[Round "3"]
[White "Mwale, Joseph"]
[Black "Mawango Davie"]
[Result "1-0"]
[WhiteElo "2154"]
[BlackElo "1888"]
[ECO "D02"]
[WhiteFed "MAW"]
[BlackFed "MAW"]
[FCGameId "-398082881"]
[WhiteFideId "16400135"]
[BlackFideId "20500238"]
[TimeControl "5400"]

1. d4 {[%clk 1:29:42]} d5 {[%clk 1:29:51]} 2. Nf3 {[%clk 1:29:14]} e6 
{[%clk 1:29:45]} 3. g3 {[%clk 1:29:07]} c5 {[%clk 1:29:38]} 4. Bg2 
{[%clk 1:29:02]} Nf6 {[%clk 1:29:34]} 5. c4 {[%clk 1:28:53]} Be7 
{[%clk 1:28:48]} 6. O-O {[%clk 1:28:39]} O-O {[%clk 1:28:40]} 7. cxd5 
{[%clk 1:28:16]} exd5 {[%clk 1:28:34]} 8. Nc3 {[%clk 1:27:29]} h6 
{[%clk 1:25:27]} 9. Bf4 {[%clk 1:23:00]} a6 {[%clk 1:24:34]} 10. Rc1 
{[%clk 1:16:51]} Nc6 {[%clk 1:23:21]} 11. dxc5 {[%clk 1:15:08]} Bxc5 
{[%clk 1:23:08]} 12. Ne5 {[%clk 1:14:45]} Bd6 {[%clk 1:10:36]} 13. Nd3 
{[%clk 1:08:37]} Be6 {[%clk 1:00:14]} 14. Qd2 {[%clk 1:02:42]} d4 
{[%clk 0:50:08]} 1-0

[Event "Malawi Open Chess Chp"]
[Site "followchess.com"]
[Date "2022.06.10"]
[Round "3"]
[White "Mwale, George"]
[Black "Sharra, Leonard"]
[Result "1-0"]
[WhiteElo "2025"]
[BlackElo "1803"]
[ECO "E61"]
[WhiteFed "MAW"]
[BlackFed "MAW"]
[FCGameId "2042890516"]
[WhiteFideId "20500254"]
[BlackFideId "20500149"]
[TimeControl "5400"]

1. d4 {[%clk 1:29:59]} Nf6 {[%clk 1:29:48]} 2. c4 {[%clk 1:29:22]} g6 
{[%clk 1:29:30]} 3. Nc3 {[%clk 1:29:14]} Bg7 {[%clk 1:29:25]} 4. Bg5 
{[%clk 1:29:02]} h6 {[%clk 1:28:47]} 5. Bh4 {[%clk 1:28:43]} d6 {[%clk 1:28:22]} 
6. e4 {[%clk 1:27:31]} O-O {[%clk 1:28:09]} 7. Qd2 {[%clk 1:26:39]} a5 
{[%clk 1:25:52]} 8. Bd3 {[%clk 1:25:11]} Nc6 {[%clk 1:25:24]} 9. Nge2 
{[%clk 1:24:46]} e5 {[%clk 1:23:54]} 10. d5 {[%clk 1:24:29]} Ne7 
{[%clk 1:21:39]} 11. Bxf6 {[%clk 1:23:23]} Bxf6 {[%clk 1:21:32]} 12. Qxh6 
{[%clk 1:17:22]} Nxd5 {[%clk 1:19:21]} 13. h4 {[%clk 1:16:52]} Nb4 
{[%clk 1:17:15]} 14. Bb1 {[%clk 1:14:44]} Bg7 {[%clk 1:16:32]} 15. Qd2 
{[%clk 1:13:38]} Be6 {[%clk 1:15:40]} 16. a3 {[%clk 1:12:02]} Na6 
{[%clk 1:14:39]} 17. Ba2 {[%clk 1:09:50]} Nc5 {[%clk 1:14:14]} 18. h5 
{[%clk 1:06:11]} Bf6 {[%clk 1:08:23]} 19. O-O-O {[%clk 0:57:27]} Bg5 
{[%clk 1:08:00]} 20. f4 {[%clk 0:57:10]} exf4 {[%clk 1:07:00]} 21. Nxf4 
{[%clk 0:56:56]} Qe7 {[%clk 1:06:21]} 22. g3 Qf6 {[%clk 1:05:47]} 23. hxg6 
{[%clk 0:39:20]} b5 1-0

[Event "Malawi Open Chess Chp"]
[Site "followchess.com"]
[Date "2022.06.10"]
[Round "3"]
[White "Kaunda, Kajani"]
[Black "Mwazozo Hope"]
[Result "0-1"]
[WhiteElo "1910"]
[BlackElo "1765"]
[ECO "B20"]
[WhiteFed "MAW"]
[BlackFed "MAW"]
[FCGameId "1776420509"]
[WhiteFideId "16400089"]
[BlackFideId "20500513"]
[TimeControl "5400"]

1. e4 {[%clk 1:29:55]} c5 {[%clk 1:29:48]} 2. d3 {[%clk 1:29:52]} e5 
{[%clk 1:29:15]} 3. Nf3 {[%clk 1:29:49]} Nc6 {[%clk 1:28:56]} 4. c3 
{[%clk 1:29:47]} Nf6 {[%clk 1:27:56]} 5. h3 {[%clk 1:29:44]} Be7 
{[%clk 1:27:43]} 6. Qc2 {[%clk 1:29:37]} O-O {[%clk 1:25:51]} 7. a4 
{[%clk 1:29:29]} d5 {[%clk 1:24:53]} 8. Be2 {[%clk 1:29:16]} d4 {[%clk 1:24:12]} 
9. O-O {[%clk 1:29:03]} h6 {[%clk 1:23:14]} 10. Na3 {[%clk 1:28:31]} a6 
{[%clk 1:21:35]} 11. Nh2 {[%clk 1:26:29]} Nh7 {[%clk 1:20:15]} 12. Bg4 
{[%clk 1:15:59]} Bxg4 {[%clk 1:17:20]} 13. Nxg4 {[%clk 1:14:59]} b5 
{[%clk 1:16:11]} 14. axb5 {[%clk 1:10:21]} axb5 {[%clk 1:16:02]} 15. Bd2 
{[%clk 1:10:14]} h5 {[%clk 1:07:52]} 16. Nh2 {[%clk 1:09:53]} dxc3 
{[%clk 1:02:15]} 17. bxc3 {[%clk 0:58:22]} b4 {[%clk 0:59:20]} 18. Nc4 
{[%clk 0:57:17]} Rb8 {[%clk 0:58:15]} 0-1

[Event "Malawi Open Chess Chp"]
[Site "followchess.com"]
[Date "2022.06.10"]
[Round "3"]
[White "Ngwira Davis Paul"]
[Black "Nyambalo, Joseph Xavier"]
[Result "0-1"]
[WhiteElo "1660"]
[BlackElo "2043"]
[ECO "A46"]
[WhiteFed "MAW"]
[BlackFed "MAW"]
[FCGameId "1942154256"]
[WhiteFideId "20501447"]
[BlackFideId "20500041"]
[TimeControl "5400"]

1. d4 {[%clk 1:29:58]} Nf6 {[%clk 1:29:56]} 2. Nf3 {[%clk 1:29:51]} d6 
{[%clk 1:29:49]} 3. Bf4 {[%clk 1:29:28]} g6 {[%clk 1:29:42]} 4. Nbd2 
{[%clk 1:29:11]} Bg7 {[%clk 1:29:26]} 5. e3 {[%clk 1:28:23]} O-O 
{[%clk 1:29:09]} 6. Bd3 {[%clk 1:28:12]} c5 {[%clk 1:28:51]} 7. c3 
{[%clk 1:27:10]} Nc6 {[%clk 1:28:23]} 8. h3 {[%clk 1:26:42]} cxd4 
{[%clk 1:27:21]} 9. cxd4 {[%clk 1:26:10]} e5 {[%clk 1:26:47]} 10. Bg5 
{[%clk 1:25:43]} exd4 {[%clk 1:25:50]} 11. exd4 {[%clk 1:23:47]} Qa5 
{[%clk 1:20:40]} 12. Be3 {[%clk 1:18:05]} Nd5 {[%clk 1:16:05]} 13. O-O 
{[%clk 1:17:19]} Nxe3 {[%clk 1:15:19]} 14. fxe3 {[%clk 1:17:06]} d5 
{[%clk 1:15:09]} 15. a3 {[%clk 1:16:27]} Bh6 {[%clk 1:14:16]} 16. e4 
{[%clk 1:15:10]} dxe4 {[%clk 1:06:55]} 17. Bxe4 {[%clk 1:11:09]} Nxd4 
{[%clk 1:05:08]} 18. Nc4 {[%clk 1:09:43]} Nxf3+ {[%clk 1:04:41]} 19. Qxf3 
{[%clk 1:08:53]} Qc5+ {[%clk 1:04:39]} 20. Kh1 {[%clk 1:08:38]} Qxc4 
{[%clk 1:03:30]} 21. Rf2 {[%clk 1:06:39]} Rb8 {[%clk 1:01:58]} 22. Bd5 
{[%clk 1:05:18]} Qc7 {[%clk 1:00:48]} 23. Qb3 {[%clk 1:04:46]} Qe7 
{[%clk 0:56:20]} 24. Bf3 {[%clk 1:01:20]} Be6 {[%clk 0:55:33]} 25. Re2 
{[%clk 1:00:36]} Qf6 {[%clk 0:53:28]} 26. Qa4 {[%clk 1:00:01]} a6 
{[%clk 0:53:20]} 27. Rae1 {[%clk 0:59:18]} Bf4 {[%clk 0:51:33]} 28. Re4 
{[%clk 0:58:27]} Bg3 {[%clk 0:51:29]} 29. Rf1 {[%clk 0:57:47]} Qxb2 
{[%clk 0:48:38]} 30. Rb4 {[%clk 0:57:05]} Qf6 {[%clk 0:48:18]} 31. Rfb1 
{[%clk 0:56:15]} Bxh3 {[%clk 0:48:00]} 32. Bxb7 {[%clk 0:55:40]} Be6 
{[%clk 0:47:29]} 33. Qxa6 {[%clk 0:55:10]} Qg5 {[%clk 0:46:57]} 0-1

[Event "Malawi Open Chess Chp"]
[Site "followchess.com"]
[Date "2022.06.10"]
[Round "2"]
[White "Mwape, William"]
[Black "Kaunda, Kajani"]
[Result "1-0"]
[WhiteElo "2177"]
[BlackElo "1910"]
[ECO "D11"]
[WhiteFed "ZAM"]
[BlackFed "MAW"]
[FCGameId "-999374410"]
[WhiteFideId "8705453"]
[BlackFideId "16400089"]
[TimeControl "5400"]

1. d4 {[%clk 1:30:00]} d5 {[%clk 1:29:18]} 2. c4 {[%clk 1:29:58]} c6 
{[%clk 1:28:58]} 3. Nf3 {[%clk 1:29:56]} Nf6 {[%clk 1:28:50]} 4. g3 
{[%clk 1:29:12]} e6 {[%clk 1:28:17]} 5. Bg2 {[%clk 1:29:09]} Bb4+ 6. Bd2 
{[%clk 1:28:37]} Be7 {[%clk 1:23:54]} 7. O-O {[%clk 1:26:52]} Ne4 
{[%clk 1:23:21]} 8. Bf4 {[%clk 1:26:20]} O-O {[%clk 1:22:48]} 9. Nc3 
{[%clk 1:26:01]} Nxc3 {[%clk 1:18:05]} 10. bxc3 {[%clk 1:25:56]} Qa5 
{[%clk 1:16:55]} 11. Qb3 {[%clk 1:24:10]} Nd7 {[%clk 1:14:51]} 12. Rab1 
{[%clk 1:22:57]} Nf6 {[%clk 1:09:54]} 13. Ne5 {[%clk 1:20:31]} Nh5 
{[%clk 1:05:35]} 14. Bd2 {[%clk 1:20:04]} Nf6 {[%clk 1:05:14]} 15. c5 
{[%clk 1:19:06]} Qd8 {[%clk 1:03:58]} 16. f3 {[%clk 1:18:39]} Nd7 
{[%clk 1:02:27]} 17. Nd3 {[%clk 1:15:48]} e5 {[%clk 0:57:28]} 18. e4 
{[%clk 1:14:04]} dxe4 {[%clk 0:51:31]} 19. fxe4 {[%clk 1:13:33]} Nxc5 
{[%clk 0:48:57]} 20. Nxc5 {[%clk 0:35:32]} Bxc5 {[%clk 0:48:28]} 21. Qc4 
{[%clk 0:30:39]} Bb6 {[%clk 0:45:23]} 22. Be3 {[%clk 0:29:30]} Be6 
{[%clk 0:38:55]} 23. Qa4 {[%clk 0:28:26]} exd4 {[%clk 0:38:25]} 24. cxd4 
{[%clk 0:28:25]} Qe7 {[%clk 0:34:00]} 25. Kh1 {[%clk 0:26:09]} Rad8 26. Rbd1 Bg4 
{[%clk 0:30:50]} 27. Rd2 {[%clk 0:22:49]} Bd7 {[%clk 0:27:57]} 28. Qd1 
{[%clk 0:19:12]} Qa3 {[%clk 0:26:18]} 29. Bf4 {[%clk 0:17:27]} Be6 
{[%clk 0:20:41]} 30. d5 {[%clk 0:16:35]} cxd5 {[%clk 0:19:18]} 31. exd5 
{[%clk 0:16:33]} Bd7 {[%clk 0:18:18]} 32. Qh5 {[%clk 0:15:49]} Bb5 
{[%clk 0:16:16]} 33. Rb1 {[%clk 0:14:23]} Bd3 {[%clk 0:11:53]} 34. Qf3 
{[%clk 0:14:11]} Rxd5 {[%clk 0:07:22]} 35. Rb3 {[%clk 0:07:26]} Qc5 
{[%clk 0:06:47]} 36. Rxb6 {[%clk 0:06:05]} Be4 {[%clk 0:04:21]} 37. Rxd5 
{[%clk 0:03:10]} Qxd5 {[%clk 0:03:38]} 38. Rd6 {[%clk 0:02:43]} Qxd6 
{[%clk 0:02:20]} 39. Bxd6 {[%clk 0:02:38]} Bxf3 {[%clk 0:02:17]} 40. Bxf3 
{[%clk 0:02:34]} Rd8 {[%clk 0:02:11]} 41. Bf4 {[%clk 0:02:18]} b6 
{[%clk 0:02:01]} 42. Kg2 {[%clk 0:02:15]} Rd3 {[%clk 0:01:49]} 43. Kf2 
{[%clk 0:02:09]} Rc3 44. Be4 {[%clk 0:01:44]} Ra3 {[%clk 0:01:26]} 45. Bd5 
{[%clk 0:01:43]} Ra5 {[%clk 0:01:21]} 46. Bb3 {[%clk 0:01:41]} Rc5 
{[%clk 0:01:16]} 47. h4 {[%clk 0:01:38]} b5 {[%clk 0:01:10]} 48. Be3 
{[%clk 0:01:37]} Rc7 {[%clk 0:01:07]} 49. Bd2 {[%clk 0:01:32]} Rd7 
{[%clk 0:01:03]} 50. Ke2 {[%clk 0:01:32]} Re7+ {[%clk 0:01:02]} 51. Kd3 
{[%clk 0:01:31]} Rd7+ {[%clk 0:00:57]} 52. Kc2 {[%clk 0:01:29]} Rc7+ 
{[%clk 0:00:55]} 53. Kb2 {[%clk 0:01:27]} Re7 {[%clk 0:00:51]} 54. Kc3 
{[%clk 0:01:19]} Rc7+ {[%clk 0:00:49]} 55. Kb4 {[%clk 0:01:16]} a6 
{[%clk 0:00:36]} 56. Bf4 {[%clk 0:01:13]} Rd7 {[%clk 0:00:29]} 57. Kc5 Re7 
{[%clk 0:00:17]} 58. Kb6 {[%clk 0:01:08]} Re1 {[%clk 0:00:00]} 1-0

[Event "Malawi Open Chess Chp"]
[Site "followchess.com"]
[Date "2022.06.10"]
[Round "2"]
[White "Kamwendo Precious"]
[Black "Mwale, Joseph"]
[Result "1-0"]
[WhiteElo "1934"]
[BlackElo "2154"]
[ECO "C77"]
[WhiteFed "MAW"]
[BlackFed "MAW"]
[FCGameId "1451346203"]
[WhiteFideId "20500785"]
[BlackFideId "16400135"]
[TimeControl "5400"]

1. e4 {[%clk 1:29:29]} e5 {[%clk 1:29:37]} 2. Nf3 {[%clk 1:29:22]} Nc6 
{[%clk 1:29:16]} 3. Bb5 {[%clk 1:29:21]} a6 {[%clk 1:29:08]} 4. Ba4 
{[%clk 1:29:19]} Nf6 {[%clk 1:28:59]} 5. d3 {[%clk 1:29:12]} b5 {[%clk 1:28:52]} 
6. Bb3 {[%clk 1:29:00]} Be7 {[%clk 1:26:12]} 7. Bd5 {[%clk 1:28:46]} Nxd5 
{[%clk 1:15:04]} 8. exd5 {[%clk 1:28:44]} Nd4 {[%clk 1:14:14]} 9. Nxe5 
{[%clk 1:28:26]} d6 {[%clk 1:11:36]} 10. Nf3 {[%clk 1:28:18]} Bg4 
{[%clk 1:11:10]} 11. Nbd2 O-O 12. c3 {[%clk 1:26:46]} Nxf3+ 13. Nxf3 
{[%clk 1:26:35]} Bf6 {[%clk 1:06:27]} 14. O-O {[%clk 1:26:32]} Qd7 
{[%clk 1:06:14]} 15. h3 Bh5 16. a4 {[%clk 1:23:25]} Bg6 {[%clk 1:01:31]} 17. Be3 
{[%clk 1:22:24]} Qf5 {[%clk 1:00:45]} 18. Bd4 {[%clk 1:22:16]} Bxd4 
{[%clk 0:59:54]} 19. Nxd4 {[%clk 1:22:10]} Qxd5 {[%clk 0:59:22]} 20. axb5 
{[%clk 1:21:59]} axb5 {[%clk 0:59:05]} 21. Re1 {[%clk 1:19:31]} Rxa1 
{[%clk 0:56:58]} 22. Qxa1 {[%clk 1:19:25]} Bxd3 {[%clk 0:56:44]} 23. Qa5 
{[%clk 1:18:41]} c6 {[%clk 0:51:42]} 24. Qb6 {[%clk 1:17:54]} g6 
{[%clk 0:19:48]} 25. Nxc6 {[%clk 1:17:23]} Kg7 {[%clk 0:17:16]} 26. Rd1 
{[%clk 1:16:44]} Qc4 {[%clk 0:11:09]} 27. Nb4 {[%clk 1:15:08]} Bf5 
{[%clk 0:09:43]} 28. Qxd6 {[%clk 1:13:46]} Re8 {[%clk 0:08:26]} 29. Nd5 
{[%clk 0:55:00]} Re6 {[%clk 0:08:11]} 30. Qf4 {[%clk 0:53:20]} Qxf4 
{[%clk 0:06:51]} 31. Nxf4 {[%clk 0:53:10]} Re4 {[%clk 0:06:48]} 32. Rd4 
{[%clk 0:52:51]} Re1+ {[%clk 0:06:01]} 33. Kh2 {[%clk 0:52:40]} g5 
{[%clk 0:05:55]} 34. Nh5+ {[%clk 0:52:24]} Kg6 {[%clk 0:05:41]} 35. Ng3 
{[%clk 0:52:14]} Be6 {[%clk 0:05:18]} 36. Re4 {[%clk 0:50:49]} Rd1 
{[%clk 0:05:01]} 37. Ne2 {[%clk 0:50:22]} Rd2 {[%clk 0:04:47]} 38. Nd4 
{[%clk 0:49:40]} Rxf2 {[%clk 0:03:36]} 39. Nxe6 {[%clk 0:48:42]} fxe6 
{[%clk 0:03:34]} 40. Rb4 {[%clk 0:47:51]} Rf5 {[%clk 0:03:31]} 41. g4 
{[%clk 0:47:36]} Rd5 {[%clk 0:03:24]} 42. Kg3 {[%clk 0:47:29]} Kf6 
{[%clk 0:03:18]} 43. Kf3 {[%clk 0:46:54]} Ke5 {[%clk 0:03:17]} 44. Ke3 
{[%clk 0:46:34]} Rc5 {[%clk 0:03:12]} 45. Kd3 {[%clk 0:46:01]} Kd5 
{[%clk 0:03:09]} 46. b3 {[%clk 0:45:46]} Kd6 {[%clk 0:02:55]} 47. Rd4+ 
{[%clk 0:45:17]} Ke7 {[%clk 0:02:46]} 48. c4 {[%clk 0:45:03]} bxc4+ 
{[%clk 0:02:44]} 49. Rxc4 {[%clk 0:44:33]} Rd5+ 50. Kc3 {[%clk 0:44:15]} Re5 
{[%clk 0:02:38]} 51. Rc7+ {[%clk 0:44:03]} Kd6 {[%clk 0:02:36]} 52. Rxh7 
{[%clk 0:43:48]} Re3+ {[%clk 0:02:33]} 53. Kc4 {[%clk 0:43:35]} Re4+ 
{[%clk 0:02:19]} 54. Kb5 {[%clk 0:43:23]} Re5+ {[%clk 0:02:17]} 55. Ka4 
{[%clk 0:41:22]} Kc6 {[%clk 0:02:15]} 56. b4 {[%clk 0:41:16]} Kb6 
{[%clk 0:02:14]} 57. Rh5 {[%clk 0:40:53]} Re3 {[%clk 0:02:12]} 58. Rxg5 
{[%clk 0:40:17]} Rxh3 {[%clk 0:02:11]} 59. Rg6 {[%clk 0:39:59]} Re3 
{[%clk 0:02:10]} 60. g5 {[%clk 0:39:54]} Ka6 {[%clk 0:02:04]} 61. Rf6 
{[%clk 0:38:25]} Re1 {[%clk 0:01:58]} 62. g6 {[%clk 0:37:58]} Kb7 
{[%clk 0:01:49]} 63. Kb5 {[%clk 0:37:04]} Re5+ {[%clk 0:01:48]} 64. Kc4 
{[%clk 0:36:47]} Re4+ {[%clk 0:01:46]} 65. Kc5 {[%clk 0:36:21]} Re5+ 
{[%clk 0:01:08]} 66. Kd6 {[%clk 0:36:04]} Rb5 {[%clk 0:01:06]} 67. g7 
{[%clk 0:35:42]} Rg5 {[%clk 0:01:05]} 68. Rf7+ {[%clk 0:35:23]} Kb6 
{[%clk 0:01:04]} 69. Kxe6 {[%clk 0:35:05]} Kc6 {[%clk 0:01:02]} 70. Kf6 
{[%clk 0:34:35]} Rg1 {[%clk 0:01:01]} 71. Ke7 {[%clk 0:34:12]} Kd5 1-0

[Event "Malawi Open Chess Chp"]
[Site "followchess.com"]
[Date "2022.06.10"]
[Round "2"]
[White "Luanja, Geoffrey"]
[Black "Mawango Davie"]
[Result "1-0"]
[WhiteElo "2150"]
[BlackElo "1888"]
[ECO "D02"]
[WhiteFed "ZAM"]
[BlackFed "MAW"]
[FCGameId "-317559020"]
[WhiteFideId "8704287"]
[BlackFideId "20500238"]
[TimeControl "5400"]

1. d4 {[%clk 1:29:57]} d5 {[%clk 1:29:52]} 2. Nf3 {[%clk 1:28:40]} Nc6 
{[%clk 1:29:26]} 3. c4 {[%clk 1:24:13]} Bg4 {[%clk 1:29:17]} 4. cxd5 
{[%clk 1:18:33]} Bxf3 {[%clk 1:29:09]} 5. gxf3 {[%clk 1:18:29]} Qxd5 
{[%clk 1:29:00]} 6. e3 {[%clk 1:18:17]} e5 {[%clk 1:28:42]} 7. Nc3 
{[%clk 1:18:04]} Qa5 {[%clk 1:26:47]} 8. d5 {[%clk 1:15:49]} O-O-O 
{[%clk 1:24:17]} 9. Bd2 {[%clk 1:14:29]} Nce7 {[%clk 1:23:20]} 10. e4 
{[%clk 1:13:29]} Qb6 {[%clk 1:21:43]} 11. Qc2 {[%clk 1:10:02]} Ng6 
{[%clk 1:17:15]} 12. h4 {[%clk 0:57:30]} h5 {[%clk 1:16:33]} 13. Rc1 
{[%clk 0:52:18]} Bb4 {[%clk 1:12:40]} 14. Nb5 {[%clk 0:47:31]} Bxd2+ 
{[%clk 1:12:26]} 15. Qxd2 {[%clk 0:47:24]} Rd7 {[%clk 1:09:56]} 16. a4 
{[%clk 0:44:48]} Nf4 {[%clk 1:05:25]} 17. a5 {[%clk 0:42:55]} Qg6 
{[%clk 1:04:09]} 18. Nxa7+ {[%clk 0:40:10]} Kb8 {[%clk 1:04:02]} 19. Nc6+ 
{[%clk 0:39:54]} bxc6 {[%clk 1:02:34]} 20. Qb4+ {[%clk 0:39:37]} Kc8 
{[%clk 1:00:30]} 21. Ba6+ {[%clk 0:39:18]} Kd8 {[%clk 1:00:20]} 22. Qf8# 
{[%clk 0:39:15]} 1-0